bitfinex/quotes_BTCUSD_20230107
["timestamp","ask_amount","ask_price","bid_price","bid_amount"]
[1673088756428,7.62017506,16935.0,16934.0,3.2678827]
[1673088760045,7.62017506,16935.0,16934.0,2.5678827]
[1673088760835,7.91166183,16935.0,16934.0,2.5678827]
[1673088761083,7.62017506,16935.0,16934.0,3.2678827]
[1673088761338,7.91166183,16935.0,16934.0,3.2678827]
[1673088761562,7.62017506,16935.0,16934.0,3.2678827]
[1673088761787,7.91166183,16935.0,16934.0,3.2678827]
[1673088762035,7.62017506,16935.0,16934.0,3.2678827]
[1673088764599,7.79737403,16935.0,16934.0,3.2678827]
[1673088765366,7.62017506,16935.0,16934.0,3.2678827]
[1673088766999,7.62017506,16935.0,16934.0,2.5678827]
[1673088767510,7.44300731,16935.0,16934.0,2.5678827]
[1673088768044,7.44300731,16935.0,16934.0,3.2678827]
[1673088768559,7.44299095,16935.0,16934.0,3.2678827]
[1673088769343,7.79734913,16935.0,16934.0,3.2678827]
[1673088769598,7.62017506,16935.0,16934.0,3.2678827]
[1673088771421,7.79734356,16935.0,16934.0,3.2678827]
[1673088772531,7.44298538,16935.0,16934.0,3.2678827]
[1673088773840,7.44298538,16935.0,16934.0,2.5678827]
[1673088774387,7.44298538,16935.0,16934.0,1.9602467]
[1673088774846,7.44298538,16935.0,16934.0,2.6602467]
[1673088775169,7.44298538,16935.0,16934.0,3.2678827]
[1673088779657,7.44298538,16935.0,16934.0,2.6602467]
[1673088780584,7.44298538,16935.0,16934.0,3.2678827]
[1673088780835,7.44298538,16935.0,16934.0,2.5678827]
[1673088781856,7.44298538,16935.0,16934.0,2.6602467]
[1673088782367,7.44298538,16935.0,16934.0,3.2678827]
[1673088783372,7.44298538,16935.0,16934.0,2.6602467]
[1673088783631,7.79734356,16935.0,16934.0,2.6602467]
[1673088784885,7.44298538,16935.0,16934.0,2.6602467]
[1673088785133,7.44298538,16935.0,16934.0,3.2678827]
[1673088787223,7.44298538,16935.0,16934.0,2.6602467]
[1673088787412,7.44298538,16935.0,16934.0,3.2678827]
[1673088788174,7.79734356,16935.0,16934.0,2.6602467]
[1673088788675,7.79734356,16935.0,16934.0,3.2678827]
[1673088789191,7.79734356,16935.0,16934.0,2.6602467]
[1673088789412,7.79734356,16935.0,16934.0,1.9602467]
[1673088790424,7.62017506,16935.0,16934.0,2.6602467]
[1673088791780,7.62017506,16935.0,16934.0,3.2678827]
[1673088793075,7.62017506,16935.0,16934.0,2.6602467]
[1673088795332,7.62017506,16935.0,16934.0,3.2678827]
[1673088795857,7.62017506,16935.0,16934.0,2.6602467]
[1673088796114,7.62017506,16935.0,16934.0,3.2678827]
[1673088796360,7.62017506,16935.0,16934.0,2.5678827]
[1673088797358,7.62017506,16935.0,16934.0,1.9602467]
[1673088797578,7.62017506,16935.0,16934.0,2.6602467]
[1673088799116,7.62017506,16935.0,16934.0,3.2678827]
[1673088801237,7.62017506,16935.0,16934.0,2.6602467]
[1673088802284,7.62017506,16935.0,16934.0,3.2678827]
[1673088804513,7.62017506,16935.0,16934.0,2.6602467]
[1673088807398,7.62017506,16935.0,16934.0,1.9602467]
[1673088808435,7.62017506,16935.0,16934.0,2.6602467]
[1673088812533,7.62017506,16935.0,16934.0,3.2678827]
[1673088814073,7.62017506,16935.0,16934.0,2.6602467]
[1673088816747,7.62017506,16935.0,16934.0,3.2678827]
[1673088819051,7.62017506,16935.0,16934.0,2.5678827]
[1673088820083,7.62017506,16935.0,16934.0,3.2678827]
[1673088822137,7.62017506,16935.0,16934.0,2.6602467]
[1673088822619,7.62017506,16935.0,16934.0,3.2678827]
[1673088826001,7.443037,16935.0,16934.0,3.2678827]
[1673088826278,7.79739518,16935.0,16934.0,3.2678827]
[1673088826513,7.62017506,16935.0,16934.0,3.2678827]
[1673088826765,7.62017506,16935.0,16934.0,2.6602467]
[1673088827289,7.62017506,16935.0,16934.0,3.2678827]
[1673088827550,7.62017506,16935.0,16934.0,2.6602467]
[1673088828561,7.62017506,16935.0,16934.0,3.2678827]
[1673088828807,7.62017506,16935.0,16934.0,2.6602467]
[1673088829043,7.62017506,16935.0,16934.0,2.5678827]
[1673088830081,7.62017506,16935.0,16934.0,3.2678827]
[1673088830661,7.62017506,16935.0,16934.0,2.6602467]
[1673088831366,7.62017506,16935.0,16934.0,3.2678827]
[1673088832353,7.62017506,16935.0,16934.0,2.6602467]
[1673088833660,7.62017506,16935.0,16934.0,3.2678827]
[1673088835992,7.62017506,16935.0,16934.0,2.5678827]
[1673088836994,7.62017506,16935.0,16934.0,3.2678827]
[1673088843131,7.62017506,16935.0,16934.0,2.5678827]
[1673088844150,7.62017506,16935.0,16934.0,3.2678827]
[1673088850024,7.62017506,16935.0,16934.0,2.5678827]
[1673088850998,7.62017506,16935.0,16934.0,3.2678827]
[1673088852486,7.79740763,16935.0,16934.0,3.2678827]
[1673088852731,7.62017506,16935.0,16934.0,3.2678827]
[1673088852982,7.79741001,16935.0,16934.0,3.2678827]
[1673088853774,7.62017506,16935.0,16934.0,2.6602467]
[1673088854795,7.62017506,16935.0,16934.0,3.2678827]
[1673088857021,7.62017506,16935.0,16934.0,2.5678827]
[1673088857272,7.62017506,16935.0,16934.0,1.9602467]
[1673088857519,7.62017506,16935.0,16934.0,2.5678827]
[1673088858026,7.62017506,16935.0,16934.0,3.2678827]
[1673088858273,7.62480375,16935.0,16934.0,3.2678827]
[1673088861238,7.62480375,16935.0,16934.0,2.6602467]
[1673088862476,7.62480375,16935.0,16934.0,3.2678827]
[1673088864675,7.62480375,16935.0,16934.0,2.6602467]
[1673088865136,7.62480375,16935.0,16934.0,3.2678827]
[1673088867120,7.62480375,16935.0,16934.0,2.5678827]
[1673088868144,7.62480375,16935.0,16934.0,3.2678827]
[1673088868930,7.80203726,16935.0,16934.0,3.2678827]
[1673088869144,7.80203713,16935.0,16934.0,3.2678827]
[1673088869607,7.80203713,16935.0,16934.0,2.6602467]
[1673088870423,7.80203713,16935.0,16934.0,2.0868287]
[1673088870665,7.62480375,16935.0,16934.0,2.6602467]
[1673088871871,7.62480375,16935.0,16934.0,3.2678827]
[1673088873077,7.62480375,16935.0,16934.0,2.6602467]
[1673088873829,7.62480375,16935.0,16934.0,3.2678827]
[1673088874086,7.62480375,16935.0,16934.0,1.9602467]
[1673088875098,7.62480375,16935.0,16934.0,2.6602467]
[1673088876572,7.62480375,16935.0,16934.0,3.2678827]
[1673088877869,7.62480375,16935.0,16934.0,2.6602467]
[1673088878870,7.62480375,16935.0,16934.0,3.2678827]
[1673088879188,7.62480375,16935.0,16934.0,2.6602467]
[1673088879918,7.62480375,16935.0,16934.0,3.2678827]
[1673088881148,7.62480375,16935.0,16934.0,2.5678827]
[1673088881398,7.62480375,16935.0,16934.0,1.9602467]
[1673088882419,7.62480375,16935.0,16934.0,2.6602467]
[1673088882658,7.62480375,16935.0,16934.0,3.2678827]
[1673088888455,7.62480375,16935.0,16934.0,2.5678827]
[1673088888699,7.62480375,16935.0,16934.0,1.9602467]
[1673088889204,7.62480375,16935.0,16934.0,2.6602467]
[1673088889459,7.62480375,16935.0,16934.0,3.2678827]
[1673088895306,7.62480375,16935.0,16934.0,2.5678827]
[1673088896351,7.62480375,16935.0,16934.0,3.2678827]
[1673088900502,7.8020456,16935.0,16934.0,3.2678827]
[1673088900716,7.62480375,16935.0,16934.0,3.2678827]
[1673088900997,7.80204522,16935.0,16934.0,3.2678827]
[1673088901268,7.62480375,16935.0,16934.0,3.2678827]
[1673088901535,7.80204861,16935.0,16934.0,3.2599527]
[1673088901754,7.62480375,16935.0,16934.0,3.2599527]
[1673088902266,7.62480375,16935.0,16934.0,2.5599527]
[1673088903280,7.62480375,16935.0,16934.0,3.2599527]
[1673088914428,7.62480375,16935.0,16934.0,2.5599527]
[1673088915446,7.62480375,16935.0,16934.0,3.2599527]
[1673088921468,7.62480375,16935.0,16934.0,2.5599527]
[1673088922454,7.62480375,16935.0,16934.0,3.2599527]
[1673088928501,7.62480375,16935.0,16934.0,2.5599527]
[1673088929503,7.62480375,16935.0,16934.0,3.2599527]
[1673088929984,7.4476941,16935.0,16934.0,3.2599527]
[1673088931116,7.4476941,16935.0,16934.0,3.43701434]
[1673088931366,7.4476941,16935.0,16934.0,2.6523167]
[1673088935446,7.4476941,16935.0,16934.0,1.9523167]
[1673088936438,7.4476941,16935.0,16934.0,2.6523167]
[1673088936697,7.4476941,16935.0,16934.0,3.2599527]
[1673088936951,7.4476941,16935.0,16934.0,2.6523167]
[1673088937494,7.4476941,16935.0,16934.0,3.2599527]
[1673088937989,7.4476941,16935.0,16934.0,2.6523167]
[1673088940635,7.4476941,16935.0,16934.0,3.2599527]
[1673088940891,7.4476941,16935.0,16934.0,2.6523167]
[1673088941412,7.4476941,16935.0,16934.0,3.2599527]
[1673088941922,7.4476941,16935.0,16934.0,2.6523167]
[1673088942688,7.4476941,16935.0,16934.0,1.9523167]
[1673088943657,7.4476941,16935.0,16934.0,2.6523167]
[1673088943910,7.4476941,16935.0,16934.0,3.2599527]
[1673088944402,7.4476941,16935.0,16934.0,2.6523167]
[1673088945410,7.4476941,16935.0,16934.0,3.2599527]
[1673088945665,7.4476941,16935.0,16934.0,2.6523167]
[1673088945916,7.4476941,16935.0,16934.0,3.2599527]
[1673088946651,7.4476941,16935.0,16934.0,2.6523167]
[1673088947405,7.27044557,16935.0,16934.0,2.6523167]
[1673088947657,7.62480375,16935.0,16934.0,2.6523167]
[1673088948412,7.44766912,16935.0,16934.0,2.6523167]
[1673088949667,7.44766912,16935.0,16934.0,1.9523167]
[1673088950686,7.44766912,16935.0,16934.0,2.6523167]
[1673088953838,7.44766912,16935.0,16934.0,3.2599527]
[1673088955115,7.44766912,16935.0,16934.0,2.6523167]
[1673088955618,7.44766912,16935.0,16934.0,3.2599527]
[1673088955863,7.44766912,16935.0,16934.0,3.43701434]
[1673088956107,7.44766912,16935.0,16934.0,3.2599527]
[1673088956355,7.44766912,16935.0,16934.0,2.6523167]
[1673088956601,7.44766912,16935.0,16934.0,1.9523167]
[1673088957324,7.44766912,16935.0,16934.0,2.5599527]
[1673088957612,7.44766912,16935.0,16934.0,3.2599527]
[1673088957861,7.44766912,16935.0,16934.0,2.6523167]
[1673088958374,7.44766912,16935.0,16934.0,3.2599527]
[1673088958847,7.44766912,16935.0,16934.0,2.6523167]
[1673088959562,7.44766912,16935.0,16934.0,3.2599527]
[1673088959811,7.44766912,16935.0,16934.0,2.6523167]
[1673088960020,7.44766912,16935.0,16934.0,3.2599527]
[1673088960484,7.44766912,16935.0,16934.0,2.6523167]
[1673088960959,7.44766912,16935.0,16934.0,3.2599527]
[1673088961224,7.44766912,16935.0,16934.0,2.6523167]
[1673088961481,7.44766912,16935.0,16934.0,2.6473467]
[1673088963241,7.44766912,16935.0,16934.0,3.2549827]
[1673088963497,7.44766912,16935.0,16934.0,2.5549827]
[1673088963996,7.44766912,16935.0,16934.0,1.9473467]
[1673088964505,7.44766912,16935.0,16934.0,2.6473467]
[1673088965512,7.8020273,16935.0,16934.0,2.6473467]
[1673088965754,7.44766912,16935.0,16934.0,2.6473467]
[1673088966755,7.8020273,16935.0,16934.0,2.6473467]
[1673088967497,7.44766912,16935.0,16934.0,2.6473467]
[1673088967994,7.8020273,16935.0,16934.0,2.6473467]
[1673088970637,7.8020273,16935.0,16934.0,1.9473467]
[1673088970792,7.44766912,16935.0,16934.0,1.9473467]
[1673088971275,7.8020273,16935.0,16934.0,1.9473467]
[1673088971540,7.8020273,16935.0,16934.0,2.6473467]
[1673088972571,7.44766912,16935.0,16934.0,2.6473467]
[1673088972807,7.8020273,16935.0,16934.0,2.6473467]
[1673088973094,7.44766912,16935.0,16934.0,2.6473467]
[1673088973263,7.44766912,16935.0,16934.0,3.2549827]
[1673088973766,7.44766912,16935.0,16934.0,2.6473467]
[1673088975032,7.8020273,16935.0,16934.0,2.6473467]
[1673088975291,7.44766912,16935.0,16934.0,2.6473467]
[1673088975811,7.44766912,16935.0,16934.0,3.2549827]
[1673088976302,7.44766912,16935.0,16934.0,2.82440834]
[1673088976565,7.44766912,16935.0,16934.0,3.2549827]
[1673088977059,7.44766912,16935.0,16934.0,2.6473467]
[1673088977554,7.44766912,16935.0,16934.0,1.9473467]
[1673088978318,7.44766912,16935.0,16934.0,2.12440834]
[1673088978544,7.44766912,16935.0,16934.0,3.43204434]
[1673088980194,7.44766912,16935.0,16934.0,2.82440834]
[1673088981200,7.44766912,16935.0,16934.0,2.6473467]
[1673088982582,7.44766912,16935.0,16934.0,2.82440834]
[1673088982810,7.44766912,16935.0,16934.0,3.43204434]
[1673088983364,7.44766912,16935.0,16934.0,2.82440834]
[1673088983654,7.44766912,16935.0,16934.0,2.6473467]
[1673088984141,7.44766912,16935.0,16934.0,3.2549827]
[1673088984671,7.44766912,16935.0,16934.0,1.9473467]
[1673088985410,7.44766912,16935.0,16934.0,2.6473467]
[1673088987693,7.8020273,16935.0,16934.0,2.6473467]
[1673088987950,7.62480375,16935.0,16934.0,2.6473467]
[1673088988946,7.44769913,16935.0,16934.0,3.2549827]
[1673088989710,7.44769913,16935.0,16934.0,2.6473467]
[1673088991466,7.44769913,16935.0,16934.0,1.9473467]
[1673088991710,7.80205731,16935.0,16934.0,1.9473467]
[1673088991949,7.44769913,16935.0,16934.0,1.9473467]
[1673088992688,7.44769913,16935.0,16934.0,2.6473467]
[1673088993681,7.80205731,16935.0,16934.0,2.6473467]
[1673088993934,7.62480375,16935.0,16934.0,2.6473467]
[1673088994741,7.62480375,16935.0,16934.0,3.2549827]
[1673088994742,7.80206054,16935.0,16934.0,3.2549827]
[1673088995233,7.62480375,16935.0,16934.0,3.2549827]
[1673088995485,7.80205725,16935.0,16934.0,2.6473467]
[1673088995987,7.62480375,16935.0,16934.0,2.6473467]
[1673088996530,7.80206005,16935.0,16934.0,2.6473467]
[1673088996954,7.62480375,16935.0,16934.0,2.6473467]
[1673088998966,7.80205448,16935.0,16934.0,2.6473467]
[1673088999732,7.4476963,16935.0,16934.0,2.6473467]
[1673089000007,7.4476963,16935.0,16934.0,1.9473467]
[1673089001015,7.4476963,16935.0,16934.0,2.6473467]
[1673089002409,7.62480375,16935.0,16934.0,2.6473467]
[1673089003378,7.80205776,16935.0,16934.0,2.6473467]
[1673089003854,7.44769958,16935.0,16934.0,2.6473467]
[1673089004093,7.80205776,16935.0,16934.0,2.6473467]
[1673089004567,7.62480375,16935.0,16934.0,2.6473467]
[1673089006338,7.44769856,16935.0,16934.0,2.6473467]
[1673089007074,7.44769856,16935.0,16934.0,1.9473467]
[1673089008248,7.44769856,16935.0,16934.0,2.6473467]
[1673089011386,7.44769856,16935.0,16934.0,3.2549827]
[1673089013100,7.44769856,16935.0,16934.0,2.6473467]
[1673089013552,7.44769856,16935.0,16934.0,3.2549827]
[1673089014052,7.44769856,16935.0,16934.0,2.5549827]
[1673089014707,7.44769856,16935.0,16934.0,1.9473467]
[1673089015215,7.44769856,16935.0,16934.0,2.6473467]
[1673089016986,7.44769856,16935.0,16934.0,3.2549827]
[1673089017992,7.44769856,16935.0,16934.0,3.43204434]
[1673089018736,7.18188168,16935.0,16934.0,3.43204434]
[1673089019483,7.18181493,16935.0,16934.0,3.43204434]
[1673089020958,7.18181493,16935.0,16934.0,2.82440834]
[1673089021223,7.18181493,16935.0,16934.0,2.12440834]
[1673089021472,7.18181493,16935.0,16934.0,2.73204434]
[1673089022239,7.18181493,16935.0,16934.0,3.43204434]
[1673089023015,7.18181493,16935.0,16934.0,2.82440834]
[1673089023269,7.18181493,16935.0,16934.0,3.29304434]
[1673089023519,7.18181493,16935.0,16934.0,3.43204434]
[1673089023771,7.18181493,16935.0,16934.0,2.68540834]
[1673089024012,7.18181493,16935.0,16934.0,2.82440834]
[1673089024309,7.18181493,16935.0,16934.0,3.43204434]
[1673089025322,7.18181493,16935.0,16934.0,2.82440834]
[1673089025581,7.18181493,16935.0,16934.0,3.43204434]
[1673089026312,7.18181493,16935.0,16934.0,2.82440834]
[1673089026822,7.18181493,16935.0,16934.0,3.43204434]
[1673089027326,7.18181493,16935.0,16934.0,2.82440834]
[1673089027848,7.18181493,16935.0,16934.0,3.43204434]
[1673089028348,7.18181493,16935.0,16934.0,2.82440834]
[1673089028599,7.18181493,16935.0,16934.0,3.43204434]
[1673089029102,7.18181493,16935.0,16934.0,2.82440834]
[1673089029357,7.18181493,16935.0,16934.0,3.43204434]
[1673089030124,7.18181493,16935.0,16934.0,2.5549827]
[1673089030397,7.18181493,16935.0,16934.0,1.9473467]
[1673089030646,7.18181493,16935.0,16934.0,2.5549827]
[1673089031112,7.18181493,16935.0,16934.0,1.9473467]
[1673089031366,7.18181493,16935.0,16934.0,2.6473467]
[1673089031608,7.44763181,16935.0,16934.0,2.6473467]
[1673089032112,7.44763181,16935.0,16934.0,3.2549827]
[1673089032627,7.18181493,16935.0,16934.0,3.2549827]
[1673089035092,7.18181493,16935.0,16934.0,3.43204434]
[1673089035347,7.18181493,16935.0,16934.0,2.6473467]
[1673089035595,7.18181493,16935.0,16934.0,3.2549827]
[1673089035842,7.18181493,16935.0,16934.0,2.6473467]
[1673089036053,7.18181493,16935.0,16934.0,3.2549827]
[1673089036296,7.44763181,16935.0,16934.0,3.2549827]
[1673089036996,7.18181493,16935.0,16934.0,3.2549827]
[1673089037373,7.18181493,16935.0,16934.0,2.5549827]
[1673089037876,7.44763181,16935.0,16934.0,2.5549827]
[1673089038121,7.18181493,16935.0,16934.0,3.2549827]
[1673089038854,7.44763181,16935.0,16934.0,3.2549827]
[1673089039357,7.18181493,16935.0,16934.0,3.2549827]
[1673089039606,7.44763181,16935.0,16934.0,2.6473467]
[1673089039838,7.44763181,16935.0,16934.0,3.2549827]
[1673089040096,7.44763181,16935.0,16934.0,2.6473467]
[1673089040356,7.44763181,16935.0,16934.0,3.2549827]
[1673089040607,7.44763181,16935.0,16934.0,2.6473467]
[1673089040863,7.44763181,16935.0,16934.0,3.2549827]
[1673089041345,7.18181493,16935.0,16934.0,3.43204434]
[1673089041883,7.18181493,16935.0,16934.0,3.2549827]
[1673089043037,7.44763181,16935.0,16934.0,3.2549827]
[1673089043281,7.18181493,16935.0,16934.0,3.2549827]
[1673089043535,7.44763181,16935.0,16934.0,3.2549827]
[1673089044011,7.44763181,16935.0,16934.0,2.5549827]
[1673089044263,7.44763181,16935.0,16934.0,1.9473467]
[1673089044517,7.44763181,16935.0,16934.0,1.94727754]
[1673089045278,7.44763181,16935.0,16934.0,2.64727754]
[1673089047316,7.44763181,16935.0,16934.0,3.24128098]
[1673089047568,7.44763181,16935.0,16934.0,2.63364498]
[1673089048316,7.44763181,16935.0,16934.0,2.6476482]
[1673089050761,7.44762077,16935.0,16934.0,2.6476482]
[1673089052009,7.80197895,16935.0,16934.0,2.6476482]
[1673089052257,7.44762077,16935.0,16934.0,2.6476482]
[1673089052796,7.44762077,16935.0,16934.0,3.2552842]
[1673089053054,7.44762077,16935.0,16934.0,2.6476482]
[1673089053295,7.44762077,16935.0,16934.0,3.2552842]
[1673089054036,7.44762077,16935.0,16934.0,2.6476482]
[1673089054978,7.44762077,16935.0,16934.0,1.9476482]
[1673089056000,7.44762077,16935.0,16934.0,2.6476482]
[1673089056498,7.80197895,16935.0,16934.0,2.6476482]
[1673089057279,7.624737,16935.0,16934.0,2.6476482]
[1673089057525,7.624737,16935.0,16934.0,2.0571212]
[1673089058019,7.80197144,16935.0,16934.0,2.0571212]
[1673089058281,7.624737,16935.0,16934.0,2.0571212]
[1673089058782,7.624737,16935.0,16934.0,1.9181212]
[1673089059037,7.624737,16935.0,16934.0,2.0571212]
[1673089059306,7.80197172,16935.0,16934.0,1.9181212]
[1673089059551,7.44761354,16935.0,16934.0,2.0571212]
[1673089060390,7.80197172,16935.0,16934.0,2.0571212]
[1673089060884,7.624737,16935.0,16934.0,1.9181212]
[1673089061155,7.624737,16935.0,16934.0,2.0571212]
[1673089061416,7.624737,16935.0,16934.0,1.9181212]
[1673089061627,7.8019644,16935.0,16934.0,2.0571212]
[1673089062172,7.624737,16935.0,16934.0,1.3571212]
[1673089063181,7.8019642,16935.0,16934.0,2.0571212]
[1673089063426,7.80196431,16935.0,16934.0,2.0571212]
[1673089063919,7.80196186,16935.0,16934.0,2.0571212]
[1673089065421,7.44760368,16935.0,16934.0,2.0571212]
[1673089065671,7.80196186,16935.0,16934.0,2.0571212]
[1673089066438,7.44760368,16935.0,16934.0,2.0571212]
[1673089066929,7.80196186,16935.0,16934.0,2.0571212]
[1673089067920,7.44760368,16935.0,16934.0,2.0571212]
[1673089069170,7.44760368,16935.0,16934.0,1.3571212]
[1673089070455,7.44760368,16935.0,16934.0,2.0571212]
[1673089071472,7.44760368,16935.0,16934.0,2.6647572]
[1673089071771,7.44760368,16935.0,16934.0,2.0571212]
[1673089071968,7.44760368,16935.0,16934.0,2.6647572]
[1673089072209,7.44760368,16935.0,16934.0,2.0571212]
[1673089072460,7.44760368,16935.0,16934.0,2.6647572]
[1673089072702,7.44760368,16935.0,16934.0,2.0571212]
[1673089074126,7.80196186,16935.0,16934.0,2.0571212]
[1673089074392,7.44760368,16935.0,16934.0,2.0571212]
[1673089075656,7.80196186,16935.0,16934.0,2.0571212]
[1673089075899,7.44760368,16935.0,16934.0,2.0571212]
[1673089076153,7.80196186,16935.0,16934.0,2.0571212]
[1673089076419,7.80196186,16935.0,16934.0,1.3571212]
[1673089076680,7.624737,16935.0,16934.0,1.3571212]
[1673089076950,7.8019527,16935.0,16934.0,1.3571212]
[1673089077200,7.8019527,16935.0,16934.0,2.0571212]
[1673089078498,7.44759452,16935.0,16934.0,2.0571212]
[1673089080546,7.624737,16935.0,16934.0,2.0571212]
[1673089083015,7.624737,16935.0,16934.0,1.3571212]
[1673089084212,7.624737,16935.0,16934.0,2.0571212]
[1673089084970,7.624737,16935.0,16934.0,1.9181212]
[1673089085216,7.624737,16935.0,16934.0,2.0571212]
[1673089085932,7.624737,16935.0,16934.0,2.1961212]
[1673089088208,7.65040689,16935.0,16934.0,2.1961212]
[1673089088464,7.91622421,16935.0,16934.0,2.1961212]
[1673089089681,7.91612167,16935.0,16934.0,2.1961212]
[1673089090182,7.6246349,16935.0,16934.0,1.4961212]
[1673089091189,7.6246349,16935.0,16934.0,2.1961212]
[1673089092205,7.91612167,16935.0,16934.0,2.1961212]
[1673089093198,7.6246349,16935.0,16934.0,2.1961212]
[1673089093448,7.91612167,16935.0,16934.0,2.1961212]
[1673089094579,7.6246349,16935.0,16934.0,2.1961212]
[1673089094806,7.65030435,16935.0,16934.0,2.1961212]
[1673089097312,7.65030435,16935.0,16934.0,1.4961212]
[1673089098100,7.65030435,16935.0,16934.0,2.1961212]
[1673089098353,7.91610703,16935.0,16934.0,2.1961212]
[1673089098882,7.65030435,16935.0,16934.0,2.1961212]
[1673089105800,7.65030435,16935.0,16934.0,1.4961212]
[1673089106805,7.65030435,16935.0,16934.0,2.1961212]
[1673089109793,7.65030435,16935.0,16934.0,2.19604604]
[1673089112802,7.65030435,16935.0,16934.0,1.49604604]
[1673089113578,7.91607444,16935.0,16934.0,2.19604604]
[1673089113810,7.65030435,16935.0,16934.0,2.19604604]
[1673089116498,7.65030435,16935.0,16934.0,2.80368204]
[1673089116743,7.91610173,16935.0,16934.0,2.80368204]
[1673089117242,7.62461496,16935.0,16934.0,2.80368204]
[1673089118344,7.62461496,16935.0,16934.0,2.19604604]
[1673089118613,7.62461496,16935.0,16934.0,2.80368204]
[1673089118874,7.62461496,16935.0,16934.0,2.19604604]
[1673089119635,7.65030435,16935.0,16934.0,2.19604604]
[1673089120882,7.65030435,16935.0,16934.0,2.80368204]
[1673089121160,7.65030435,16935.0,16934.0,2.19604604]
[1673089126328,7.65030435,16935.0,16934.0,1.49604604]
[1673089126593,7.62467827,16935.0,16934.0,1.49604604]
[1673089126846,7.91616504,16935.0,16934.0,2.10368204]
[1673089127099,7.91616504,16935.0,16934.0,1.49604604]
[1673089127343,7.91616504,16935.0,16934.0,2.80368204]
[1673089127344,7.62467827,16935.0,16934.0,2.80368204]
[1673089128084,7.91616504,16935.0,16934.0,2.80368204]
[1673089128350,7.65030435,16935.0,16934.0,2.19604604]
[1673089129104,7.91617696,16935.0,16934.0,2.19604604]
[1673089129359,7.65030435,16935.0,16934.0,2.80368204]
[1673089129853,7.65030435,16935.0,16934.0,2.19604604]
[1673089130103,7.65030435,16935.0,16934.0,2.80368204]
[1673089130356,7.65030435,16935.0,16934.0,2.19604604]
[1673089130609,7.65030435,16935.0,16934.0,2.80368204]
[1673089130872,7.65030435,16935.0,16934.0,2.19604604]
[1673089132638,7.65030435,16935.0,16934.0,2.80368204]
[1673089133417,7.65030435,16935.0,16934.0,2.19604604]
[1673089133647,7.65030435,16935.0,16934.0,2.80368204]
[1673089133898,7.65030435,16935.0,16934.0,2.19604604]
[1673089134843,7.65030435,16935.0,16934.0,2.10368204]
[1673089135099,7.91617824,16935.0,16934.0,2.10368204]
[1673089135367,7.65030435,16935.0,16934.0,2.10368204]
[1673089136392,7.65030435,16935.0,16934.0,1.49604604]
[1673089137149,7.65030435,16935.0,16934.0,2.19604604]
[1673089137899,7.65030435,16935.0,16934.0,2.80368204]
[1673089138408,7.62468089,16935.0,16934.0,2.80368204]
[1673089142366,7.62468089,16935.0,16934.0,2.19604604]
[1673089142614,7.62468089,16935.0,16934.0,2.80368204]
[1673089146038,7.62468089,16935.0,16934.0,2.10368204]
[1673089146996,7.62468089,16935.0,16934.0,2.80368204]
[1673089153056,7.62468089,16935.0,16934.0,2.10368204]
[1673089154043,7.62468089,16935.0,16934.0,2.80368204]
[1673089155132,7.44755335,16935.0,16934.0,2.80368204]
[1673089155893,7.62468089,16935.0,16934.0,2.80368204]
[1673089156145,7.80190534,16935.0,16934.0,2.19604604]
[1673089157177,7.80190534,16935.0,16934.0,2.80368204]
[1673089159383,7.62468089,16935.0,16934.0,2.80368204]
[1673089160098,7.62468089,16935.0,16934.0,2.10368204]
[1673089160851,7.44754241,16935.0,16934.0,2.10368204]
[1673089161111,7.44754241,16935.0,16934.0,2.80368204]
[1673089161876,7.80190059,16935.0,16934.0,2.80368204]
[1673089162670,7.44754241,16935.0,16934.0,2.80368204]
[1673089164133,7.44754241,16935.0,16934.0,2.19604604]
[1673089164644,7.62468089,16935.0,16934.0,2.19604604]
[1673089164886,7.62468089,16935.0,16934.0,2.80368204]
[1673089167162,7.62468089,16935.0,16934.0,2.10368204]
[1673089167411,7.62468089,16935.0,16934.0,1.49604604]
[1673089168147,7.62468089,16935.0,16934.0,2.19604604]
[1673089168595,7.62468089,16935.0,16934.0,2.80368204]
[1673089168813,7.62468089,16935.0,16934.0,2.19604604]
[1673089169332,7.62468089,16935.0,16934.0,2.1958649]
[1673089173578,7.62468089,16935.0,16934.0,1.4958649]
[1673089180455,7.62468089,16935.0,16934.0,2.1958649]
[1673089180718,7.62468089,16935.0,16934.0,2.8035009]
[1673089182050,7.62468089,16935.0,16934.0,2.1958649]
[1673089185058,7.62468089,16935.0,16934.0,2.8035009]
[1673089185311,7.62468089,16935.0,16934.0,2.1958649]
[1673089186637,7.62468089,16935.0,16934.0,1.4958649]
[1673089187660,7.62468089,16935.0,16934.0,2.1958649]
[1673089188132,7.62468089,16935.0,16934.0,2.8035009]
[1673089188379,7.62468089,16935.0,16934.0,2.1958649]
[1673089189664,7.62468089,16935.0,16934.0,2.8035009]
[1673089190432,7.62468089,16935.0,16934.0,2.1958649]
[1673089190943,7.62468089,16935.0,16934.0,2.8035009]
[1673089191699,7.62468089,16935.0,16934.0,2.1958649]
[1673089192459,7.62468089,16935.0,16934.0,2.8035009]
[1673089192966,7.62468089,16935.0,16934.0,2.1958649]
[1673089193737,7.65030435,16935.0,16934.0,1.4958649]
[1673089193985,7.91618181,16935.0,16934.0,1.4958649]
[1673089194501,7.62469504,16935.0,16934.0,2.1958649]
[1673089194749,7.62469504,16935.0,16934.0,2.8035009]
[1673089195258,7.62469504,16935.0,16934.0,2.1958649]
[1673089196312,7.62469504,16935.0,16934.0,2.8035009]
[1673089197851,7.80195828,16935.0,16934.0,2.8035009]
[1673089198113,7.62469504,16935.0,16934.0,2.8035009]
[1673089198350,7.62469504,16935.0,16934.0,2.1958649]
[1673089199149,7.62469504,16935.0,16934.0,2.8035009]
[1673089199911,7.62469504,16935.0,16934.0,2.1958649]
[1673089200162,7.62469504,16935.0,16934.0,2.8035009]
[1673089200420,7.62469504,16935.0,16933.0,1.64554563]
[1673089200421,1.12059012,16934.0,16933.0,0.50411077]
[1673089200673,1.65089792,16934.0,16933.0,0.0085]
[1673089200939,1.22024453,16934.0,16933.0,0.599032]
[1673089201189,1.86458449,16934.0,16933.0,0.77605087]
[1673089201446,1.86147625,16934.0,16933.0,0.16829687]
[1673089201971,1.85651525,16934.0,16933.0,0.16829687]
[1673089202200,1.86458449,16934.0,16933.0,0.16589948]
[1673089202728,1.86458449,16934.0,16932.0,1.11222386]
[1673089202729,2.01366979,16934.0,16932.0,1.11222386]
[1673089202964,0.8176761,16933.0,16932.0,0.590571]
[1673089203227,1.15383874,16933.0,16932.0,1.289071]
[1673089203475,1.33107697,16933.0,16932.0,1.11072386]
[1673089203735,0.95649697,16933.0,16932.0,0.589071]
[1673089204250,0.77925874,16933.0,16932.0,0.589071]
[1673089204767,1.07074551,16933.0,16932.0,0.589071]
[1673089205019,0.77925874,16933.0,16932.0,0.589071]
[1673089205275,0.80586957,16933.0,16930.0,1.11229586]
[1673089205541,0.81749045,16932.0,16931.0,0.0085]
[1673089205800,0.64032523,16932.0,16931.0,0.0085]
[1673089206558,1.29983153,16932.0,16931.0,0.0085]
[1673089207038,1.47690389,16932.0,16931.0,0.0085]
[1673089207326,1.29983153,16932.0,16931.0,0.0085]
[1673089207575,1.47689792,16932.0,16931.0,0.0085]